﻿Department family,Entity,Date,Expense type,Expense area,Supplier,Transaction number,Amount,VAT registration number
Dept of Health,MHRA,01/11/2021,Facilities Management & Portering,Facilities & Estates,Government Property Agency,00000001/11532,"377,094.91 ",888801080
Dept of Health,MHRA,01/11/2021,Accommodation Service Charge,Facilities & Estates,Government Property Agency,00000001/11532,"223,854.24 ",888801080
Dept of Health,MHRA,01/11/2021,Electricity,Facilities & Estates,Government Property Agency,00000001/11532,"95,358.17 ",888801080
Dept of Health,MHRA,01/11/2021,Security,Facilities & Estates,Government Property Agency,00000001/11532,"87,926.85 ",888801080
Dept of Health,MHRA,01/11/2021,Infrastructure Services and Maintenance,Facilities & Estates,Government Property Agency,00000001/11532,"48,909.35 ",888801080
Dept of Health,MHRA,01/11/2021,Facilities Management & Portering,Facilities & Estates,Government Property Agency,00000001/11533,"45,307.40 ",888801080
Dept of Health,MHRA,01/11/2021,Accommodation Service Charge,Facilities & Estates,Government Property Agency,00000001/11533,"23,657.23 ",888801080
Dept of Health,MHRA,01/11/2021,Electricity,Facilities & Estates,Government Property Agency,00000001/11533,"10,077.83 ",888801080
Dept of Health,MHRA,01/11/2021,Security,Facilities & Estates,Government Property Agency,00000001/11533,"9,292.30 ",888801080
Dept of Health,MHRA,01/11/2021,Infrastructure Services and Maintenance,Facilities & Estates,Government Property Agency,00000001/11533,"5,168.90 ",888801080
Dept of Health,MHRA,01/11/2021,Accommodation Rent,Facilities & Estates,Government Property Agency,00000001/12169,"465,707.65 ",888801080
Dept of Health,MHRA,01/11/2021,Facilities Management & Portering,Facilities & Estates,Government Property Agency,00000001/12169,"188,547.46 ",888801080
Dept of Health,MHRA,01/11/2021,Accommodation Rates,Facilities & Estates,Government Property Agency,00000001/12169,"159,129.44 ",888801080
Dept of Health,MHRA,01/11/2021,Accommodation Service Charge,Facilities & Estates,Government Property Agency,00000001/12169,"111,927.23 ",888801080
Dept of Health,MHRA,01/11/2021,Electricity,Facilities & Estates,Government Property Agency,00000001/12169,"47,678.98 ",888801080
Dept of Health,MHRA,01/11/2021,Security,Facilities & Estates,Government Property Agency,00000001/12169,"43,963.42 ",888801080
Dept of Health,MHRA,01/11/2021,Infrastructure Services and Maintenance,Facilities & Estates,Government Property Agency,00000001/12169,"24,454.67 ",888801080
Dept of Health,MHRA,01/11/2021,Accommodation Rent,Facilities & Estates,Government Property Agency,00000001/12170,"49,021.86 ",888801080
Dept of Health,MHRA,01/11/2021,Facilities Management & Portering,Facilities & Estates,Government Property Agency,00000001/12170,"22,653.70 ",888801080
Dept of Health,MHRA,01/11/2021,Accommodation Rates,Facilities & Estates,Government Property Agency,00000001/12170,"16,750.47 ",888801080
Dept of Health,MHRA,01/11/2021,Accommodation Service Charge,Facilities & Estates,Government Property Agency,00000001/12170,"11,828.61 ",888801080
Dept of Health,MHRA,01/11/2021,Electricity,Facilities & Estates,Government Property Agency,00000001/12170,"5,038.92 ",888801080
Dept of Health,MHRA,01/11/2021,Security,Facilities & Estates,Government Property Agency,00000001/12170,"4,646.15 ",888801080
Dept of Health,MHRA,01/11/2021,Infrastructure Services and Maintenance,Facilities & Estates,Government Property Agency,00000001/12170,"2,584.45 ",888801080
Dept of Health,MHRA,01/11/2021,Accommodation Rates,Infrastructure & Operations,Hertsmere Borough Council,Business Rates Bill: 2021/2022,"834,456.00 ",230640406
Dept of Health,MHRA,03/11/2021,Software & Licences,"Technology, Digital, Data & Delivery",Boxxe Limited,INV0119555,"41,046.13 ",734245248
Dept of Health,MHRA,03/11/2021,"Service, Integration & Management - Enterprise Architecture","Technology, Digital, Data & Delivery",Ernst & Young LLP,GB01G000229605,"39,360.00 ",773831408
Dept of Health,MHRA,03/11/2021,Assets Under Construction - Land & Buildings,Infrastructure & Operations,Parker Air Conditioning Ltd,INV25689,"30,000.00 ",506700965
Dept of Health,MHRA,03/11/2021,Contracted Out Services Miscellaneous,Vigilance & Risk Management of Medicines,Red Ant Digital Ltd,INV-08769,"30,000.00 ",123388322
Dept of Health,MHRA,04/11/2021,Contracted Out Services Miscellaneous,Vigilance & Risk Management of Medicines,Commonwealth Informatics Inc,GBP93,"43,222.50 ",
Dept of Health,MHRA,04/11/2021,Contracted Out Services Miscellaneous,Vigilance & Risk Management of Medicines,Commonwealth Informatics Inc,GBP95,"38,489.06 ",
Dept of Health,MHRA,04/11/2021,Application Services and Maintenance,"Technology, Digital, Data & Delivery",Insife ApS,350,"244,040.33 ",
Dept of Health,MHRA,08/11/2021,Security,Infrastructure & Operations,CIS Security Limited,45969,"52,816.88 ",206193092
Dept of Health,MHRA,08/11/2021,Travel & Subsistence,Finance & Procurement,Clarity Travel Management,MHRA0066,"35,742.38 ",197694731
Dept of Health,MHRA,08/11/2021,Assets Under Construction - Land & Buildings,Infrastructure & Operations,Commercial Services UK Ltd,INV-1220,"52,224.00 ",130597616
Dept of Health,MHRA,08/11/2021,Contracted Out Services Miscellaneous,"Technology, Digital, Data & Delivery",Credera Limited,INV006786,"169,773.76 ",283541886
Dept of Health,MHRA,08/11/2021,"Service, Integration & Management (SIAM)","Technology, Digital, Data & Delivery",Redrock Consulting Ltd,10227,"28,524.12 ",862247715
Dept of Health,MHRA,10/11/2021,Gas,Infrastructure & Operations,Corona Energy Retail 4 Ltd,16553782,"33,469.86 ",577704800
Dept of Health,MHRA,10/11/2021,"Service, Integration & Management (SIAM)","Technology, Digital, Data & Delivery",Redrock Consulting Ltd,10228,"53,596.68 ",862247715
Dept of Health,MHRA,10/11/2021,Infrastructure Services and Maintenance,"Technology, Digital, Data & Delivery",Trustmarque Solutions Limited,2329460,"166,434.12 ",394593601
Dept of Health,MHRA,15/11/2021,"Service, Integration & Management - Enterprise Architecture","Technology, Digital, Data & Delivery",Ernst & Young LLP,GB01G000240787,"61,788.00 ",773831408
Dept of Health,MHRA,15/11/2021,Infrastructure Services and Maintenance,"Technology, Digital, Data & Delivery",KHIPU Networks,21491,"32,400.00 ",866341116
Dept of Health,MHRA,15/11/2021,Software & Licences,"Technology, Digital, Data & Delivery",MuleSoft LLC,INV-43162,"362,077.72 ",
Dept of Health,MHRA,17/11/2021,Application Services and Maintenance,Vigilance & Risk Management of Medicines,Cabinet Office,3809319,"31,939.64 ",888801080
Dept of Health,MHRA,17/11/2021,Subcontracted Laboratory Services,Infectious Disease Diagnostics,CGTC Manufacturing Innovation Centre Limited,3026,"47,750.74 ",154421433
Dept of Health,MHRA,17/11/2021,Subcontracted Laboratory Services,Infectious Disease Diagnostics,CGTC Manufacturing Innovation Centre Limited,3027,"27,600.00 ",154421433
Dept of Health,MHRA,17/11/2021,Internal Audit,Governance Office,Government Internal Audit Agency,43966,"74,658.00 ",888827544
Dept of Health,MHRA,22/11/2021,Application Services and Maintenance,"Technology, Digital, Data & Delivery",Accenture (UK) Limited,3003526642,"102,537.47 ",788629066
Dept of Health,MHRA,22/11/2021,Application Services and Maintenance,"Technology, Digital, Data & Delivery",Accenture (UK) Limited,3003526645,"128,877.84 ",788629066
Dept of Health,MHRA,22/11/2021,Application Services and Maintenance,"Technology, Digital, Data & Delivery",Accenture (UK) Limited,3003526647,"170,494.13 ",788629066
Dept of Health,MHRA,22/11/2021,Infrastructure Services and Maintenance,"Technology, Digital, Data & Delivery",CAE Technology Services Limited,271067,"85,245.91 ",836637989
Dept of Health,MHRA,24/11/2021,Application Services and Maintenance,"Technology, Digital, Data & Delivery",Accenture (UK) Limited,3003527505,"350,734.07 ",788629066
Dept of Health,MHRA,24/11/2021,Application Services and Maintenance,"Technology, Digital, Data & Delivery",Accenture (UK) Limited,3003527506,"26,500.01 ",788629066
Dept of Health,MHRA,24/11/2021,Assets Under Construction - Plant & Equipment,Infrastructure & Operations,Mace Ltd,2101011613,"59,657.68 ",776468756
Dept of Health,MHRA,24/11/2021,Contracted Out Services Miscellaneous,"Technology, Digital, Data & Delivery",Red Ant Digital Ltd,INV-08780,"118,200.00 ",123388322
Dept of Health,MHRA,29/11/2021,Assets Under Construction - Land & Buildings,Infrastructure & Operations,Detail Design Engineering LTD,14091,"30,799.44 ",561067355
Dept of Health,MHRA,29/11/2021,Electricity,Infrastructure & Operations,EDF Energy,10877226,"90,767.60 ",523041202
Dept of Health,MHRA,29/11/2021,Assets Under Construction - Plant & Equipment,Infrastructure & Operations,Quality Assured Industrial Services Ltd,62284,"36,192.00 ",573067434
